bitfinex-derivatives/quotes_BTCF0:USTF0_20250711
["timestamp","ask_amount","ask_price","bid_price","bid_amount"]
[1752246981708,0.3608,117790.0,117780.0,0.2366686]
[1752246981910,0.6174002,117810.0,117800.0,0.1697397]
[1752246982210,0.1697397,117800.0,117790.0,0.0301]
[1752246982403,1.07334896,117800.0,117790.0,0.0301]
[1752246982600,0.1697541,117790.0,117780.0,0.0349]
[1752246982802,1.07336336,117790.0,117780.0,0.0339]
[1752246983016,1.78090336,117790.0,117780.0,0.0339]
[1752246983312,0.2774685,117780.0,117770.0,0.25868371]
[1752246983512,0.6382685,117780.0,117770.0,0.28988371]
[1752246984513,0.6382685,117780.0,117770.0,0.29188371]
[1752246985403,0.4685,117780.0,117770.0,0.29188371]
[1752246985603,0.1077,117780.0,117770.0,0.29188371]
[1752246985809,0.1077,117780.0,117770.0,1.61530897]
[1752246986004,0.3608,117800.0,117770.0,2.11530897]
[1752246986205,0.002,117810.0,117800.0,0.1697397]
[1752246986206,0.3628,117810.0,117800.0,0.1697397]
[1752246986414,0.3628,117810.0,117800.0,1.35482896]
[1752246986711,0.5325253,117810.0,117800.0,0.8120197]
[1752246987217,0.3628,117810.0,117800.0,0.8120197]
[1752246987406,0.1717253,117810.0,117800.0,0.8120197]
[1752246987806,0.5345253,117810.0,117800.0,0.8120197]
[1752246988916,1.07733456,117810.0,117800.0,0.64228]
[1752246989210,1.13963456,117810.0,117800.0,0.1697397]
[1752246989409,0.5968253,117810.0,117800.0,0.1697397]
[1752246989610,1.13863456,117810.0,117800.0,0.1697397]
[1752246989810,0.5958253,117810.0,117800.0,0.1697397]
[1752246990009,0.1727253,117810.0,117800.0,0.2002397]
[1752246990214,0.5335253,117810.0,117800.0,0.2312397]
[1752246990410,0.1727253,117810.0,117800.0,0.2312397]
[1752246990810,0.5335253,117810.0,117800.0,0.2312397]
[1752246992115,0.1727253,117810.0,117800.0,0.2312397]
[1752246992321,0.5335253,117810.0,117800.0,0.2312397]
[1752246992622,0.5325253,117810.0,117800.0,0.2312397]
[1752246992915,0.5335253,117810.0,117800.0,0.2312397]
[1752246993316,0.1727253,117810.0,117800.0,0.2312397]
[1752246994218,0.5335253,117810.0,117800.0,0.2312397]
[1752246995322,0.1727253,117810.0,117800.0,0.2312397]
[1752246995619,0.3638,117810.0,117800.0,0.2312397]
[1752246995830,0.003,117810.0,117800.0,0.77404896]
[1752246996217,0.003,117810.0,117800.0,1.30462495]
[1752246996622,0.3608,117830.0,117820.0,0.1697109]
[1752246996824,0.3608,117830.0,117820.0,1.4493109]
[1752246997017,0.3608,117830.0,117820.0,1.5129109]
[1752246997223,0.002,117850.0,117840.0,0.1696821]
[1752246997430,0.06278191,117850.0,117840.0,1.77649136]
[1752246997723,0.002,117850.0,117840.0,1.77649136]
[1752246998231,0.002,117850.0,117840.0,1.41569136]
[1752246998425,0.002,117850.0,117840.0,0.8728821]
[1752246999530,0.003,117850.0,117840.0,0.8728821]
[1752246999733,0.1726677,117850.0,117840.0,0.8728821]
[1752246999934,0.5334677,117850.0,117840.0,0.93971441]
[1752247000227,1.13967696,117850.0,117840.0,0.90931441]
[1752247000425,0.004,117850.0,117840.0,0.90941441]
[1752247000626,0.004,117850.0,117840.0,0.94091441]
[1752247000838,0.1736677,117850.0,117840.0,0.94091441]
[1752247001234,0.004,117850.0,117840.0,0.94091441]
[1752247001436,0.1736677,117850.0,117840.0,0.94091441]
[1752247001924,0.004,117850.0,117840.0,0.94091441]
[1752247002330,0.1736677,117850.0,117840.0,0.94091441]
[1752247002734,0.004,117850.0,117840.0,0.94091441]
[1752247002939,0.1736677,117850.0,117840.0,0.94063441]
[1752247003130,0.1736677,117850.0,117840.0,0.30131441]
[1752247003329,0.1736677,117850.0,117840.0,0.90897441]
[1752247003528,0.2352677,117850.0,117840.0,0.87577441]
[1752247003735,1.13887696,117850.0,117840.0,0.87569441]
[1752247004034,1.13887696,117850.0,117840.0,0.70601231]
[1752247004740,1.13887696,117850.0,117840.0,0.06693231]
[1752247006040,1.77787696,117850.0,117840.0,0.06693231]
[1752247007643,2.57073052,117850.0,117800.0,0.00177195]
[1752247007943,1.43413456,117810.0,117800.0,0.17151165]
[1752247008138,2.71449456,117810.0,117800.0,0.17151165]
[1752247008336,2.77759456,117810.0,117800.0,0.17151165]
[1752247008742,2.77759456,117810.0,117800.0,0.00177195]
[1752247009340,2.77759456,117810.0,117800.0,0.17551165]
[1752247009541,2.2347853,117810.0,117800.0,0.17551165]
[1752247009736,0.7847,117810.0,117800.0,0.17551165]
[1752247010044,0.5615253,117810.0,117800.0,0.17651165]
[1752247010345,0.5615253,117810.0,117800.0,0.24181165]
[1752247010933,1.10433456,117810.0,117800.0,0.24181165]
[1752247011135,0.5941253,117810.0,117800.0,0.17651165]
[1752247011644,0.5941253,117810.0,117800.0,0.17351165]
[1752247011645,0.2333253,117810.0,117800.0,0.17351165]
[1752247011844,0.2333253,117810.0,117800.0,0.2408061]
[1752247012646,0.5941253,117810.0,117800.0,0.2408061]
[1752247012847,1.13693456,117810.0,117800.0,0.0710664]
[1752247013046,1.13693456,117810.0,117800.0,0.17351165]
[1752247013250,1.13693456,117810.0,117800.0,0.00377195]
[1752247013449,1.13693456,117810.0,117800.0,0.17351165]
[1752247014148,1.13693456,117810.0,117800.0,0.00377195]
[1752247014546,1.13693456,117810.0,117800.0,0.17351165]
[1752247014844,1.13693456,117810.0,117800.0,0.00377195]
[1752247015444,1.13693456,117810.0,117800.0,0.17351165]
[1752247016048,0.3918,117810.0,117800.0,0.17351165]
[1752247016245,1.1998853,117810.0,117800.0,0.23801165]
[1752247016445,1.1998853,117810.0,117800.0,0.23811165]
[1752247016646,1.2310853,117810.0,117800.0,0.23811165]
[1752247017046,1.2310853,117810.0,117800.0,0.17361165]
[1752247018248,0.5927253,117810.0,117800.0,0.17361165]
[1752247020351,1.13553456,117810.0,117800.0,0.17361165]
[1752247020749,0.423,117810.0,117800.0,0.17361165]
[1752247021748,0.5927253,117810.0,117800.0,0.17361165]
[1752247021954,0.3918,117810.0,117800.0,0.17361165]
[1752247022256,0.3918,117810.0,117800.0,0.23731165]
[1752247022444,0.5615253,117810.0,117800.0,0.23731165]
[1752247022748,0.5935253,117810.0,117800.0,0.23731165]
[1752247023153,0.5935253,117810.0,117800.0,0.20411165]
[1752247023351,0.5935253,117810.0,117800.0,0.17361165]
[1752247026962,0.4238,117810.0,117800.0,0.17361165]
[1752247027256,0.5935252,117810.0,117800.0,0.17361165]
[1752247029259,0.5935252,117810.0,117800.0,0.00387195]
[1752247029859,0.5935252,117810.0,117800.0,0.17361165]
[1752247030861,0.5935252,117810.0,117800.0,0.00387195]
[1752247031657,1.13633446,117810.0,117800.0,0.00387195]
[1752247032756,1.94039046,117810.0,117800.0,0.00387195]
[1752247032961,2.19039046,117810.0,117800.0,0.00387195]
[1752247033659,0.1697685,117780.0,117770.0,0.05342256]
[1752247033957,1.07337776,117780.0,117770.0,0.02294628]
[1752247034158,1.10367776,117780.0,117770.0,0.02294628]
[1752247034355,0.3911,117780.0,117770.0,0.19272918]
[1752247034554,0.5608684,117780.0,117770.0,0.02294628]
[1752247034760,1.10367766,117780.0,117770.0,0.02294628]
[1752247034959,1.10367766,117780.0,117770.0,0.19672918]
[1752247035154,1.10367766,117780.0,117770.0,0.06242256]
[1752247035360,1.10367766,117780.0,117770.0,0.23220546]
[1752247036264,1.10367766,117780.0,117770.0,0.20935918]
[1752247036462,0.5608684,117780.0,117770.0,0.20935918]
[1752247036955,0.5911684,117780.0,117770.0,0.20935918]
[1752247037555,0.5911684,117780.0,117770.0,0.03957628]
[1752247037759,1.13397766,117780.0,117770.0,0.03200113]
[1752247038266,1.14236044,117780.0,117770.0,0.03200113]
[1752247038761,1.14236044,117780.0,117770.0,0.02900113]
[1752247039067,1.14236044,117780.0,117770.0,0.02600113]
[1752247039264,1.14236044,117780.0,117770.0,0.0031]
[1752247039767,1.21042384,117780.0,117770.0,0.0031]
[1752247040370,1.84466384,117780.0,117770.0,0.0031]
[1752247040573,1.2254084,117780.0,117770.0,0.1728829]
[1752247040868,1.2254084,117780.0,117770.0,0.0031]
[1752247041259,1.76821766,117780.0,117770.0,0.0031]
[1752247042061,0.1697829,117770.0,117760.0,0.0016983]
[1752247042265,1.13729216,117770.0,117760.0,0.0016983]
[1752247042469,1.30712416,117770.0,117760.0,0.0016983]
[1752247042673,1.13729216,117770.0,117760.0,0.0016983]
[1752247044261,1.20413154,117770.0,117760.0,0.0016983]
[1752247044773,1.62396354,117770.0,117760.0,0.0016983]
[1752247045176,1.37396354,117770.0,117760.0,0.0016983]
[1752247045467,0.1698261,117740.0,117730.0,0.09106588]
[1752247045676,0.1698406,117730.0,117720.0,0.31572349]
[1752247045864,0.5918406,117730.0,117720.0,0.35818689]
[1752247046063,0.422,117730.0,117720.0,0.32771061]
[1752247046265,0.6155288,117750.0,117740.0,0.1698261]
[1752247046468,1.2497688,117750.0,117740.0,0.1698261]
[1752247046766,0.1698261,117740.0,117730.0,0.3178442]
[1752247046970,0.5918261,117740.0,117730.0,0.3178442]
[1752247047474,0.5918261,117740.0,117730.0,0.3248442]
[1752247047677,0.5918261,117740.0,117730.0,0.2823864]
[1752247047972,0.5918261,117740.0,117730.0,0.1768406]
[1752247048172,0.5918261,117740.0,117730.0,0.1738406]
[1752247049074,0.5918261,117740.0,117730.0,0.004]
[1752247049774,0.5918261,117740.0,117730.0,0.1718406]
[1752247051271,0.5918261,117740.0,117730.0,0.002]
[1752247052674,1.13463536,117740.0,117730.0,0.002]
[1752247054174,0.5918261,117740.0,117730.0,0.002]
[1752247054380,1.76879536,117740.0,117730.0,0.002]
[1752247055876,1.77729242,117740.0,117730.0,0.002]
[1752247056883,1.77929242,117740.0,117730.0,0.001]
[1752247057675,0.1698405,117730.0,117720.0,0.17155027]
[1752247057879,1.13524976,117730.0,117720.0,0.00169887]
[1752247058076,1.13524976,117730.0,117720.0,0.17155387]
[1752247058276,1.13524976,117730.0,117720.0,0.00169887]
[1752247058478,1.13524976,117730.0,117720.0,0.17155387]
[1752247058678,1.13524976,117730.0,117720.0,0.00169887]
[1752247058879,1.13724976,117730.0,117720.0,0.00169887]
[1752247059080,1.13724976,117730.0,117720.0,0.17155387]
[1752247059977,1.13824976,117730.0,117720.0,0.17155387]
[1752247060680,1.13824976,117730.0,117720.0,0.00169887]
[1752247060877,0.3638,117730.0,117720.0,0.17165377]
[1752247061079,0.5336405,117730.0,117720.0,0.17165377]
[1752247061275,0.5336405,117730.0,117720.0,0.23545377]
[1752247061472,0.5336405,117730.0,117720.0,0.06559887]
[1752247061780,1.07644976,117730.0,117720.0,0.06559887]
[1752247061974,1.14084976,117730.0,117720.0,0.20325387]
[1752247062180,0.5980405,117730.0,117720.0,0.20325387]
[1752247062378,0.2046405,117730.0,117720.0,0.23545387]
[1752247062582,0.5654405,117730.0,117720.0,0.23545387]
[1752247063073,1.10824976,117730.0,117720.0,0.06559887]
[1752247063274,1.14034976,117730.0,117720.0,0.23545387]
[1752247063677,1.14034976,117730.0,117720.0,0.06559887]
[1752247063984,1.13834976,117730.0,117720.0,0.20325387]
[1752247064184,1.13934976,117730.0,117720.0,0.03339887]
[1752247064387,1.13934976,117730.0,117720.0,0.00179887]
[1752247064880,1.14134976,117730.0,117720.0,0.00179887]
[1752247065083,1.14134976,117730.0,117720.0,0.17165387]
[1752247065681,1.14134976,117730.0,117720.0,0.00179887]
[1752247065884,1.14134976,117730.0,117720.0,0.17165387]
[1752247066579,1.14134976,117730.0,117720.0,0.00179887]
[1752247066781,1.06172446,117730.0,117720.0,0.00179887]
[1752247066983,1.06172446,117730.0,117720.0,0.17165387]
[1752247067684,0.5985405,117730.0,117720.0,0.17165387]
[1752247067879,1.02862446,117730.0,117720.0,0.17165387]
[1752247068082,0.99682446,117730.0,117720.0,0.23565387]
[1752247068878,0.003,117730.0,117720.0,1.05963783]
[1752247069278,0.562698,117760.0,117750.0,0.1698117]
[1752247069478,0.5305973,117760.0,117750.0,0.63299566]
[1752247069684,0.5305973,117760.0,117750.0,0.69829566]
[1752247070078,0.3608,117760.0,117750.0,0.69829566]
[1752247070784,0.3628,117760.0,117750.0,0.2351117]
[1752247071083,0.5335973,117760.0,117750.0,0.2351117]
[1752247074483,0.5335973,117760.0,117750.0,0.24382929]
[1752247074684,0.3638,117760.0,117750.0,0.24382929]
[1752247075386,0.003,117760.0,117750.0,1.14694265]
[1752247076288,0.1727972,117760.0,117750.0,1.14694265]
[1752247076588,0.1727972,117760.0,117750.0,1.64694265]
[1752247076989,0.003,117760.0,117750.0,1.10462929]
[1752247078482,0.003,117760.0,117750.0,1.64694265]
[1752247078886,0.1727973,117760.0,117750.0,0.74382929]
[1752247079391,0.003,117760.0,117750.0,0.74382929]
[1752247079592,0.003,117760.0,117750.0,0.74392929]
[1752247080287,0.1727973,117760.0,117750.0,1.3684517]
[1752247080492,0.77681066,117760.0,117750.0,1.3363517]
[1752247080792,0.0647,117760.0,117750.0,1.3363517]
[1752247080984,0.2032973,117760.0,117750.0,1.3678517]
[1752247081389,0.0335,117760.0,117750.0,0.8678517]
[1752247082096,0.003,117760.0,117750.0,0.8678517]
[1752247082395,0.3638,117760.0,117750.0,0.8678517]
[1752247082694,0.5335973,117760.0,117750.0,0.8363517]
[1752247082886,1.13671066,117760.0,117750.0,0.63314]
[1752247083287,1.13671066,117760.0,117750.0,0.0001]
[1752247083488,1.13671066,117760.0,117750.0,0.6331]
[1752247083889,1.13671066,117760.0,117750.0,0.0001]
[1752247084291,1.13671066,117760.0,117750.0,0.1699117]
[1752247084890,1.13671066,117760.0,117750.0,0.0001]
[1752247085086,1.13671066,117760.0,117750.0,0.1699117]
[1752247085296,1.14516671,117760.0,117750.0,0.0001]
[1752247085483,0.60285335,117760.0,117750.0,0.0001]
[1752247085691,1.14516671,117760.0,117750.0,0.0001]
[1752247087088,0.1698406,117730.0,117720.0,0.5036672]
[1752247087391,1.07295396,117730.0,117720.0,0.82047297]
[1752247087594,1.13515396,117730.0,117720.0,0.8433741]
[1752247087792,0.5928406,117730.0,117720.0,0.8433741]
[1752247088489,0.5928406,117730.0,117720.0,0.8463741]
[1752247088687,0.5928406,117730.0,117720.0,0.8483741]
[1752247089399,0.5928406,117730.0,117720.0,0.82547297]
[1752247090292,0.5928406,117730.0,117720.0,0.82247297]
[1752247090487,0.5938406,117730.0,117720.0,0.82247297]
[1752247090802,0.5948406,117730.0,117720.0,0.82047297]
[1752247091599,0.3942,117730.0,117720.0,0.82047297]
[1752247091800,0.002,117730.0,117720.0,0.85347297]
[1752247091998,0.002,117730.0,117720.0,1.42678633]
[1752247092188,0.002,117730.0,117720.0,1.95747432]
[1752247092389,0.6354565,117760.0,117750.0,0.1698118]
[1752247092595,0.6354565,117760.0,117750.0,1.4349318]
[1752247093397,1.17776986,117760.0,117750.0,1.4349318]
[1752247093794,1.18613049,117760.0,117750.0,1.4349318]
[1752247094095,1.17776986,117760.0,117750.0,1.4349318]
[1752247094396,1.17876986,117760.0,117750.0,1.4349318]
[1752247095898,1.17976986,117760.0,117750.0,1.4349318]
[1752247096199,0.6374565,117760.0,117750.0,1.4349318]
[1752247096397,1.17976986,117760.0,117750.0,1.4349318]
[1752247098004,1.17876986,117760.0,117750.0,1.4349318]
[1752247098202,1.18076986,117760.0,117750.0,1.4349318]
[1752247099106,1.10138222,117760.0,117750.0,1.4349318]
[1752247100702,0.6384565,117760.0,117750.0,1.4349318]
[1752247101406,0.6374565,117760.0,117750.0,1.4349318]
[1752247102005,0.6354565,117760.0,117750.0,1.4349318]
[1752247102205,1.09838222,117760.0,117750.0,1.4349318]
[1752247103102,0.3608,117760.0,117750.0,1.89785752]
[1752247103309,0.5305974,117760.0,117750.0,1.96085752]
[1752247105006,0.5961893,117770.0,117760.0,0.1697973]
[1752247105302,0.5648893,117770.0,117760.0,0.69802302]
[1752247105809,0.5648893,117770.0,117760.0,0.2350973]
[1752247106204,0.5658893,117770.0,117760.0,0.2350973]
[1752247106410,0.5678893,117770.0,117760.0,0.2350973]
[1752247107706,0.3981,117770.0,117760.0,0.2350973]
[1752247107906,0.005,117770.0,117760.0,0.69802302]
[1752247108108,0.005,117770.0,117760.0,1.05882302]
[1752247109312,0.1747829,117770.0,117760.0,1.55882302]
[1752247109510,0.005,117770.0,117760.0,1.0958973]
[1752247110110,0.005,117770.0,117760.0,1.11184756]
[1752247110416,0.004,117770.0,117760.0,1.57577328]
[1752247110810,0.002,117770.0,117760.0,1.57577328]
[1752247111016,0.002,117770.0,117760.0,1.57677328]
[1752247112514,0.002,117770.0,117760.0,1.57687328]
[1752247113520,0.002,117770.0,117760.0,1.57587328]
[1752247113719,0.002,117770.0,117760.0,1.57600828]
[1752247115010,0.99550872,117770.0,117760.0,0.68698266]
[1752247115209,1.05760872,117770.0,117760.0,1.31814266]
[1752247115818,0.594683,117770.0,117760.0,1.31814266]
[1752247116011,0.594683,117770.0,117760.0,0.81814266]
[1752247117827,1.05760872,117770.0,117760.0,0.81814266]
[1752247118326,1.05760872,117770.0,117760.0,0.8020574]
[1752247118724,1.05760872,117770.0,117760.0,0.63198]
[1752247119123,1.05760872,117770.0,117760.0,0.0011]
[1752247119521,1.68836872,117770.0,117760.0,0.0011]
[1752247124230,0.594683,117770.0,117760.0,0.1708974]
[1752247124429,1.68812872,117770.0,117760.0,0.1708974]
[1752247124625,1.225123,117770.0,117760.0,0.1708974]
[1752247125432,0.594683,117770.0,117760.0,0.1708974]
[1752247125638,0.002,117770.0,117760.0,1.26418312]
[1752247125928,0.002,117770.0,117760.0,1.32588312]
[1752247126927,0.002,117770.0,117760.0,2.14960884]
[1752247127232,0.002,117770.0,117760.0,1.68668312]
[1752247127434,0.002,117770.0,117760.0,1.85651512]
[1752247127630,0.002,117770.0,117760.0,2.35651512]
[1752247128622,0.002,117770.0,117760.0,1.7235174]
[1752247128823,0.63470862,117770.0,117760.0,0.6708974]
[1752247129025,0.63470862,117770.0,117760.0,1.3009773]
[1752247129026,1.06000862,117770.0,117760.0,1.3009773]
[1752247129425,1.06000862,117770.0,117760.0,0.8009773]
[1752247129628,1.06000862,117770.0,117760.0,0.63118]
[1752247129823,1.06000862,117770.0,117760.0,0.8009773]
[1752247130831,0.5970829,117770.0,117760.0,0.8009773]
[1752247131134,1.06000862,117770.0,117760.0,0.8009773]
[1752247132832,0.1717829,117770.0,117760.0,1.26390302]
[1752247133035,0.1717829,117770.0,117760.0,1.32760302]
[1752247133630,0.3608,117790.0,117780.0,0.1697685]
[1752247133836,0.59330881,117810.0,117800.0,0.1697397]
[1752247134036,0.5325269,117810.0,117800.0,1.89214542]
[1752247134328,0.5325269,117810.0,117800.0,1.96408514]
[1752247134534,0.5325269,117810.0,117800.0,1.9798892]
[1752247134727,0.5325269,117810.0,117800.0,1.97144948]
[1752247134924,0.5325269,117810.0,117800.0,1.50852376]
[1752247135128,0.5994269,117810.0,117800.0,1.50852376]
[1752247135735,0.5994269,117810.0,117800.0,1.47542376]
[1752247138534,0.3668,117810.0,117800.0,1.47542376]
[1752247138738,0.3668,117810.0,117800.0,2.04822059]
[1752247138739,0.006,117810.0,117800.0,2.04822059]
[1752247138932,0.009,117810.0,117800.0,2.40902059]
[1752247140140,0.009,117810.0,117800.0,2.90902059]
[1752247140632,0.008,117810.0,117800.0,2.97739984]
[1752247141136,0.424,117840.0,117830.0,0.1696965]
[1752247141434,0.50842021,117850.0,117830.0,0.1696965]
[1752247141435,0.002,117850.0,117840.0,0.1696821]
[1752247141736,0.002,117850.0,117840.0,0.77357893]
[1752247142038,0.002,117850.0,117840.0,0.5924821]
[1752247142239,0.002,117850.0,117840.0,0.78228527]
[1752247142534,0.1756677,117850.0,117840.0,0.78228527]
[1752247142739,0.006,117850.0,117840.0,0.78228527]
[1752247143037,0.1756677,117850.0,117840.0,0.78228527]
[1752247143932,0.006,117850.0,117840.0,0.24038844]
[1752247144340,0.002,117850.0,117840.0,0.7984675]
[1752247144638,0.002,117850.0,117840.0,1.1592675]
[1752247145037,0.3608,117870.0,117860.0,0.1696533]
[1752247145332,0.1696389,117870.0,117860.0,1.4695058]
[1752247145543,0.7190611,117880.0,117870.0,0.1696389]
[1752247145835,0.676652,117880.0,117870.0,0.1696389]
[1752247147343,0.676652,117880.0,117870.0,0.1697389]
[1752247148544,1.21854883,117880.0,117870.0,0.1717389]
[1752247148739,0.676652,117880.0,117870.0,0.1717389]
[1752247149143,0.676652,117880.0,117870.0,0.24091902]
[1752247149349,1.21854883,117880.0,117870.0,0.07128012]
[1752247149637,2.26646083,117880.0,117870.0,1e-07]
[1752247149843,0.1696677,117850.0,117840.0,4e-08]
[1752247150037,2.77297336,117850.0,117840.0,0.01326466]
[1752247150240,1.91717653,117850.0,117840.0,4e-08]
[1752247150441,1.5837677,117850.0,117840.0,4e-08]
[1752247150637,2.12566453,117850.0,117840.0,4e-08]
[1752247151439,2.12562453,117850.0,117840.0,0.16968214]
[1752247151639,2.12562453,117850.0,117840.0,4e-08]
[1752247151842,1.91717653,117850.0,117840.0,0.00200004]
[1752247152144,1.49746453,117850.0,117840.0,0.00200004]
[1752247152542,1.49746453,117850.0,117840.0,4e-08]
[1752247152742,1.49846453,117850.0,117840.0,0.16968214]
[1752247152944,2.12654453,117850.0,117840.0,0.16968214]
[1752247153144,2.12654453,117850.0,117840.0,4e-08]
[1752247153640,0.5957677,117850.0,117840.0,0.16968214]
[1752247153842,0.0653,117850.0,117840.0,0.16968214]
[1752247154043,0.5957677,117850.0,117840.0,0.16968214]
[1752247154238,0.4261,117850.0,117840.0,0.16968214]
[1752247154439,0.001,117850.0,117840.0,0.23358214]
[1752247154747,0.1706677,117850.0,117840.0,0.23358214]
[1752247154947,0.6754971,117860.0,117850.0,0.1696677]
[1752247156351,0.6794971,117860.0,117850.0,0.1696677]
[1752247156850,0.5946652,117860.0,117850.0,0.1696677]
[1752247157849,0.5926652,117860.0,117850.0,0.1696677]
[1752247158046,0.5936652,117860.0,117850.0,0.1696677]
[1752247158548,1.13456203,117860.0,117850.0,0.1696677]
[1752247158754,1.21939403,117860.0,117850.0,0.1696677]
[1752247158955,0.1696677,117850.0,117840.0,0.29692294]
[1752247159148,1.13566453,117850.0,117840.0,0.21208514]
[1752247159349,1.13566453,117850.0,117840.0,0.16968214]
[1752247159743,0.5937677,117850.0,117840.0,0.16968214]
[1752247161355,0.5937677,117850.0,117840.0,0.17068214]
[1752247161652,1.13566453,117850.0,117840.0,0.00100004]
[1752247162056,1.13666453,117850.0,117840.0,0.00100004]
[1752247162255,1.13666453,117850.0,117840.0,4e-08]
[1752247162455,1.13766453,117850.0,117840.0,4e-08]
[1752247162756,1.30637653,117850.0,117840.0,4e-08]
[1752247162956,1.13766453,117850.0,117840.0,0.16968214]
[1752247163354,1.76502453,117850.0,117840.0,0.16968214]
[1752247163751,1.76502453,117850.0,117840.0,4e-08]
[1752247164358,1.93473653,117850.0,117840.0,4e-08]
[1752247164654,1.76502453,117850.0,117840.0,4e-08]
[1752247165052,1.2231277,117850.0,117840.0,0.16968214]
[1752247165259,0.5957677,117850.0,117840.0,0.16968214]
[1752247165452,1.2229677,117850.0,117840.0,0.16968214]
[1752247165853,0.5957677,117850.0,117840.0,0.16968214]
[1752247166358,0.4261,117850.0,117840.0,0.71157897]
[1752247166663,0.002,117850.0,117840.0,0.77257897]
[1752247166957,0.1716677,117850.0,117840.0,0.77257897]
[1752247167348,0.5324677,117850.0,117840.0,0.77257897]
[1752247167853,0.5324677,117850.0,117840.0,0.23068214]
[1752247168360,0.1706677,117850.0,117840.0,0.23168214]
[1752247168955,0.1706677,117850.0,117840.0,0.23268214]
[1752247169156,0.5314677,117850.0,117840.0,0.23268214]
[1752247169459,0.5945677,117850.0,117840.0,0.17168214]
[1752247169753,0.2337677,117850.0,117840.0,0.17168214]
[1752247169958,0.5945677,117850.0,117840.0,0.17168214]
[1752247170659,0.2337677,117850.0,117840.0,0.17168214]
[1752247170858,0.5945677,117850.0,117840.0,0.17168214]
[1752247171959,0.5935677,117850.0,117840.0,0.17168214]
[1752247172154,0.3618,117850.0,117840.0,0.23368214]
[1752247172354,0.3618,117850.0,117840.0,0.77557897]
[1752247172554,0.1706677,117850.0,117840.0,0.77557897]
[1752247172857,0.5304677,117850.0,117840.0,0.77557897]
[1752247173057,0.5304677,117850.0,117840.0,0.77657897]
[1752247173261,0.5304677,117850.0,117840.0,0.17268214]
[1752247173459,0.5928677,117850.0,117840.0,0.17268214]
[1752247174253,0.2320677,117850.0,117840.0,0.17268214]
[1752247174454,0.5928677,117850.0,117840.0,0.17268214]
[1752247176562,0.5304677,117850.0,117840.0,0.74737897]
[1752247176761,0.1696677,117850.0,117840.0,0.77937897]
[1752247176959,0.5304677,117850.0,117840.0,0.77937897]
[1752247177162,0.1696677,117850.0,117840.0,0.77937897]
[1752247177359,0.5304677,117850.0,117840.0,0.77937897]
[1752247177964,0.1696677,117850.0,117840.0,0.77937897]
[1752247178373,0.1696677,117850.0,117840.0,0.23748214]
[1752247179067,0.6333738,117860.0,117850.0,0.1696677]
[1752247179261,0.6757879,117860.0,117850.0,0.1696677]
[1752247179461,0.6757879,117860.0,117850.0,0.7959077]
[1752247179861,0.1696677,117850.0,117840.0,0.33192294]
[1752247180067,0.5952677,117850.0,117840.0,0.92612294]
[1752247180869,0.5952677,117850.0,117840.0,0.29992294]
[1752247181057,0.5952677,117850.0,117840.0,0.92604294]
[1752247181663,0.5952677,117850.0,117840.0,0.95584294]
[1752247181864,0.6152913,117860.0,117850.0,0.1696677]
[1752247182064,0.6787913,117860.0,117850.0,0.1696677]
[1752247183667,0.6787913,117860.0,117850.0,0.1706677]
[1752247185963,0.6787913,117860.0,117850.0,0.7965077]
[1752247190270,0.6787913,117860.0,117850.0,0.1706677]
[1752247190571,1.22068813,117860.0,117850.0,0.1706677]
[1752247190772,1.22068813,117860.0,117850.0,0.001]
[1752247192075,0.6787913,117860.0,117850.0,0.1706677]
[1752247196178,1.22068813,117860.0,117850.0,0.1706677]
[1752247197867,0.6787913,117860.0,117850.0,0.1706677]
[1752247198475,1.22068813,117860.0,117850.0,0.1706677]
[1752247198780,1.28147004,117860.0,117850.0,0.1706677]
[1752247200377,0.73957321,117860.0,117850.0,0.1706677]
[1752247200581,0.6787913,117860.0,117850.0,0.1706677]
[1752247201278,1.28147004,117860.0,117850.0,0.001]
[1752247201475,1.45117405,117860.0,117850.0,0.001]
[1752247203183,0.73957321,117860.0,117850.0,0.1706677]
[1752247203478,1.3033113,117860.0,117850.0,0.1706677]
[1752247203682,1.84520813,117860.0,117850.0,0.1706677]
[1752247203884,1.90599004,117860.0,117850.0,0.001]
[1752247204280,1.84520813,117860.0,117850.0,0.1706677]
[1752247204690,1.90599004,117860.0,117850.0,0.1706677]
[1752247204986,1.84520813,117860.0,117850.0,0.001]
[1752247205183,2.07569405,117860.0,117850.0,0.001]
[1752247205583,2.01491214,117860.0,117850.0,0.001]
[1752247205783,2.09076857,117860.0,117850.0,0.001]
[1752247206690,1.92106456,117860.0,117850.0,0.001]
[1752247207489,1.84520813,117860.0,117850.0,0.001]
[1752247210197,1.92106456,117860.0,117850.0,0.001]
[1752247210497,1.84520813,117860.0,117850.0,0.001]
[1752247211098,1.92106456,117860.0,117850.0,0.001]
[1752247211396,1.84520813,117860.0,117850.0,0.001]
[1752247211798,1.90589862,117860.0,117850.0,0.001]
[1752247212993,1.28137862,117860.0,117850.0,0.001]
[1752247213189,1.90517862,117860.0,117850.0,0.001]
[1752247213389,1.28137862,117860.0,117850.0,0.1706677]
[1752247213595,1.36324179,117860.0,117850.0,0.1706677]
[1752247213895,0.6152913,117860.0,117850.0,0.2324677]
[1752247215493,0.67598179,117860.0,117850.0,0.2324677]
[1752247217098,0.6152913,117860.0,117850.0,0.2324677]
[1752247217502,0.6152913,117860.0,117850.0,0.24854851]
[1752247218501,0.6152913,117860.0,117850.0,0.25719003]
[1752247218998,0.5304533,117860.0,117850.0,0.25719003]
[1752247219202,0.5304533,117860.0,117850.0,0.79908686]
[1752247219904,0.5304533,117860.0,117850.0,0.25719003]
[1752247220203,0.5304533,117860.0,117850.0,0.24854851]
[1752247220801,0.5304533,117860.0,117850.0,0.24754851]
[1752247221605,0.5304533,117860.0,117850.0,0.24854851]
[1752247222202,1.07235013,117860.0,117850.0,0.21824851]
[1752247222504,1.13435013,117860.0,117850.0,0.001]
[1752247222707,1.75747013,117860.0,117850.0,0.001]
[1752247222902,1.75747013,117860.0,117850.0,0.002]
[1752247224200,1.13435013,117860.0,117850.0,0.1716677]
[1752247224504,1.75743013,117860.0,117850.0,0.1716677]
[1752247225611,0.5304533,117860.0,117850.0,0.1716677]
[1752247225806,0.5304533,117860.0,117850.0,0.2351677]
[1752247226809,1.07235013,117860.0,117850.0,0.2351677]
[1752247227408,1.07235013,117860.0,117850.0,0.2451677]
[1752247228002,1.07235013,117860.0,117850.0,0.1816677]
[1752247228210,1.13405013,117860.0,117850.0,0.012]
[1752247228409,1.13405013,117860.0,117850.0,0.1816677]
[1752247229304,1.13405013,117860.0,117850.0,0.012]
[1752247229904,1.13405013,117860.0,117850.0,0.1816677]
[1752247230105,1.13405013,117860.0,117850.0,0.012]
[1752247230306,1.13405013,117860.0,117850.0,0.1816677]
[1752247230709,1.1842133,117860.0,117850.0,0.1816677]